[Event "Titled Tuesday Blitz May 4 2021"]
[White "Suarez Uriel, Adrian"]
[Black "Komiagina, Maria"]
[WhiteFideId "22230874"]
[BlackFideId "4153987"]
[WhiteElo "2299"]
[BlackElo "2014"]
[Result "0-1"]
[Round "03"]
[TimeControl "180+1"]
[Date "2021.05.04"]
[WhiteClock "0:00:06"]
[BlackClock "0:00:04"]

1. Nf3 {[%clk 0:03:00]}  Nf6 {[%clk 0:02:59]} 2. b3 {[%clk 0:03:00]}  d6 {[%clk 0:02:55]} 3. d4 {[%clk 0:03:00]}  g6 {[%clk 0:02:54]} 4. g3 {[%clk 0:02:59]}  Bg7 {[%clk 0:02:54]} 5. Bb2 {[%clk 0:02:59]}  O-O {[%clk 0:02:54]} 6. Bg2 {[%clk 0:02:59]}  Nbd7 {[%clk 0:02:54]} 7. O-O {[%clk 0:02:59]}  e5 {[%clk 0:02:53]} 8. dxe5 {[%clk 0:02:59]}  Ng4 {[%clk 0:02:53]} 9. Qc1 {[%clk 0:02:57]}  Ngxe5 {[%clk 0:02:51]} 10. Nxe5 {[%clk 0:02:57]}  dxe5 {[%clk 0:02:46]} 11. Rd1 {[%clk 0:02:54]}  Qe7 {[%clk 0:02:37]} 12. Ba3 {[%clk 0:02:50]}  c5 {[%clk 0:02:31]} 13. Nc3 {[%clk 0:02:48]}  e4 {[%clk 0:02:12]} 14. Nd5 {[%clk 0:02:39]}  Qe5 {[%clk 0:02:07]} 15. Rb1 {[%clk 0:02:32]}  Nb6 {[%clk 0:01:30]} 16. Bb2 {[%clk 0:02:11]}  Qh5 {[%clk 0:01:29]} 17. Ne7+ {[%clk 0:01:10]}  Kh8 {[%clk 0:01:28]} 18. Bxg7+ {[%clk 0:01:11]}  Kxg7 {[%clk 0:01:27]} 19. Qb2+ {[%clk 0:00:58]}  f6 {[%clk 0:01:22]} 20. Bxe4 {[%clk 0:00:57]}  Bh3 {[%clk 0:01:10]} 21. Bxb7 {[%clk 0:00:49]}  Rad8 {[%clk 0:01:09]} 22. Bf3 {[%clk 0:00:48]}  Bg4 {[%clk 0:01:01]} 23. Qc3 {[%clk 0:00:43]}  Rfe8 {[%clk 0:00:52]} 24. Nc6 {[%clk 0:00:24]}  Rc8 {[%clk 0:00:51]} 25. Na5 {[%clk 0:00:22]}  Rc7 {[%clk 0:00:29]} 26. Rd6 {[%clk 0:00:17]}  Nd7 {[%clk 0:00:27]} 27. Rbd1 {[%clk 0:00:16]}  Ne5 {[%clk 0:00:26]} 28. Bxg4 {[%clk 0:00:11]}  Nxg4 {[%clk 0:00:25]} 29. h4 {[%clk 0:00:11]}  Ne5 {[%clk 0:00:24]} 30. f4 {[%clk 0:00:10]}  Ng4 {[%clk 0:00:19]} 31. Rd7+ {[%clk 0:00:10]}  Rxd7 {[%clk 0:00:18]} 32. Rxd7+ {[%clk 0:00:11]}  Kh6 {[%clk 0:00:17]} 33. Qf3 {[%clk 0:00:11]}  Qf5 {[%clk 0:00:16]} 34. Nc4 {[%clk 0:00:10]}  Qxd7 {[%clk 0:00:11]} 35. f5 {[%clk 0:00:09]}  Qd4+ {[%clk 0:00:10]} 36. Kg2 {[%clk 0:00:08]}  g5 {[%clk 0:00:10]} 37. hxg5+ {[%clk 0:00:08]}  Kxg5 {[%clk 0:00:10]} 38. e3 {[%clk 0:00:07]}  Qe4 {[%clk 0:00:06]} 39. Nd6 {[%clk 0:00:05]}  Qxf3+ {[%clk 0:00:06]} 40. Kxf3 {[%clk 0:00:06]}  Rxe3+ {[%clk 0:00:05]} 41. Kg2 {[%clk 0:00:06]}  Re2+ {[%clk 0:00:05]} 42. Kg1 {[%clk 0:00:06]}  Rxc2 {[%clk 0:00:05]} 43. Nf7+ {[%clk 0:00:05]}  Kxf5 {[%clk 0:00:04]} 44. Nd6+ {[%clk 0:00:06]}  Ke5 {[%clk 0:00:05]} 45. Nc4+ {[%clk 0:00:07]}  Kd5 {[%clk 0:00:04]} 46. Kf1 {[%clk 0:00:07]}  Rxa2 {[%clk 0:00:03]} 47. Ke1 {[%clk 0:00:05]}  Ra1+ {[%clk 0:00:03]} 48. Ke2 {[%clk 0:00:06]}  Ne5 {[%clk 0:00:03]} 49. Ne3+ {[%clk 0:00:05]}  Ke4 {[%clk 0:00:03]} 50. Nd1 {[%clk 0:00:05]}  Ra2+ {[%clk 0:00:03]} 51. Ke1 {[%clk 0:00:05]}  Nd3+ {[%clk 0:00:03]} 52. Kf1 {[%clk 0:00:05]}  Ra1 {[%clk 0:00:03]} 53. Ke2 {[%clk 0:00:05]}  Ra2+ {[%clk 0:00:03]} 54. Kf1 {[%clk 0:00:05]}  Kf3 {[%clk 0:00:03]} 55. Kg1 {[%clk 0:00:05]}  Ra1 {[%clk 0:00:03]} 56. Kh2 {[%clk 0:00:05]}  Rxd1 {[%clk 0:00:04]} 57. g4 {[%clk 0:00:06]}  Nf4 {[%clk 0:00:03]} 58. g5 {[%clk 0:00:07]}  Rd2+ {[%clk 0:00:03]} 59. Kh1 {[%clk 0:00:07]}  Kg3 {[%clk 0:00:03]} 60. g6 {[%clk 0:00:06]}  Rd1# {[%clk 0:00:04]} 0-1


[Site "https://www.chess.com"]

[Event "Titled Tuesday Blitz May 4 2021"]
[White "Tejedor Fuente, Enrique"]
[Black "Indjic, Aleksandar"]
[WhiteFideId "2299100"]
[BlackFideId "911925"]
[WhiteElo "2535"]
[BlackElo "2591"]
[Result "0-1"]
[Round "03"]
[TimeControl "180+1"]
[Date "2021.05.04"]
[WhiteClock "0:00:02"]
[BlackClock "0:00:13"]

1. e4 {[%clk 0:03:00]}  c5 {[%clk 0:02:59]} 2. Nf3 {[%clk 0:02:59]}  Nc6 {[%clk 0:02:59]} 3. d4 {[%clk 0:03:00]}  cxd4 {[%clk 0:03:00]} 4. Nxd4 {[%clk 0:03:00]}  Nf6 {[%clk 0:02:59]} 5. Nc3 {[%clk 0:03:00]}  e6 {[%clk 0:02:59]} 6. Ndb5 {[%clk 0:02:59]}  Bc5 {[%clk 0:02:58]} 7. Bf4 {[%clk 0:02:34]}  O-O {[%clk 0:02:55]} 8. Bc7 {[%clk 0:02:30]}  Qe7 {[%clk 0:02:55]} 9. Bd6 {[%clk 0:02:29]}  Bxd6 {[%clk 0:02:55]} 10. Qxd6 {[%clk 0:02:30]}  Qd8 {[%clk 0:02:56]} 11. O-O-O {[%clk 0:02:22]}  a6 {[%clk 0:02:56]} 12. Nd4 {[%clk 0:02:04]}  Ne7 {[%clk 0:02:54]} 13. f3 {[%clk 0:01:51]}  b5 {[%clk 0:02:52]} 14. g4 {[%clk 0:01:49]}  Bb7 {[%clk 0:02:50]} 15. Nb3 {[%clk 0:01:40]}  Bc6 {[%clk 0:02:48]} 16. Kb1 {[%clk 0:01:32]}  Ne8 {[%clk 0:02:46]} 17. Qd4 {[%clk 0:01:22]}  Qb8 {[%clk 0:02:41]} 18. Qb4 {[%clk 0:01:00]}  d6 {[%clk 0:02:36]} 19. Na5 {[%clk 0:00:56]}  Qc7 {[%clk 0:02:35]} 20. Be2 {[%clk 0:00:48]}  Ng6 {[%clk 0:02:32]} 21. h4 {[%clk 0:00:43]}  Nf4 {[%clk 0:02:32]} 22. h5 {[%clk 0:00:41]}  h6 {[%clk 0:02:27]} 23. Rd2 {[%clk 0:00:40]}  Rc8 {[%clk 0:02:23]} 24. Rhd1 {[%clk 0:00:38]}  Ba8 {[%clk 0:02:23]} 25. Bf1 {[%clk 0:00:36]}  Qc5 {[%clk 0:02:05]} 26. Qxc5 {[%clk 0:00:26]}  Rxc5 {[%clk 0:02:05]} 27. a3 {[%clk 0:00:21]}  g6 {[%clk 0:02:02]} 28. hxg6 {[%clk 0:00:18]}  fxg6 {[%clk 0:02:02]} 29. Nb3 {[%clk 0:00:17]}  Rc7 {[%clk 0:02:01]} 30. a4 {[%clk 0:00:15]}  bxa4 {[%clk 0:01:56]} 31. Nxa4 {[%clk 0:00:15]}  Bb7 {[%clk 0:01:53]} 32. Na5 {[%clk 0:00:15]}  Bc8 {[%clk 0:01:53]} 33. Nb6 {[%clk 0:00:15]}  h5 {[%clk 0:01:42]} 34. gxh5 {[%clk 0:00:14]}  gxh5 {[%clk 0:01:41]} 35. Bc4 {[%clk 0:00:09]}  Kh7 {[%clk 0:01:39]} 36. Rh1 {[%clk 0:00:06]}  Kh6 {[%clk 0:01:38]} 37. b3 {[%clk 0:00:04]}  Rc5 {[%clk 0:01:38]} 38. Nxc8 {[%clk 0:00:03]}  Rxc8 {[%clk 0:01:39]} 39. Nb7 {[%clk 0:00:04]}  Rc6 {[%clk 0:01:38]} 40. Nd8 {[%clk 0:00:03]}  Rxc4 {[%clk 0:01:18]} 41. bxc4 {[%clk 0:00:04]}  a5 {[%clk 0:01:03]} 42. Nc6 {[%clk 0:00:03]}  a4 {[%clk 0:01:02]} 43. Kb2 {[%clk 0:00:03]}  Rf7 {[%clk 0:01:00]} 44. Kc3 {[%clk 0:00:02]}  Rc7 {[%clk 0:00:56]} 45. Na5 {[%clk 0:00:03]}  Kg5 {[%clk 0:00:50]} 46. Rg1+ {[%clk 0:00:03]}  Kf6 {[%clk 0:00:51]} 47. Ra1 {[%clk 0:00:03]}  h4 {[%clk 0:00:47]} 48. Rxa4 {[%clk 0:00:03]}  h3 {[%clk 0:00:47]} 49. Ra1 {[%clk 0:00:04]}  Rh7 {[%clk 0:00:45]} 50. Rh2 {[%clk 0:00:03]}  Rh5 {[%clk 0:00:25]} 51. Nb3 {[%clk 0:00:03]}  Nc7 {[%clk 0:00:23]} 52. c5 {[%clk 0:00:02]}  dxc5 {[%clk 0:00:22]} 53. Ra5 {[%clk 0:00:03]}  Rg5 {[%clk 0:00:20]} 54. Rxc5 {[%clk 0:00:03]}  Rg2 {[%clk 0:00:20]} 55. Rxh3 {[%clk 0:00:03]}  Nxh3 {[%clk 0:00:18]} 56. Rxc7 {[%clk 0:00:03]}  Ng1 {[%clk 0:00:18]} 57. Kd4 {[%clk 0:00:02]}  Nxf3+ {[%clk 0:00:17]} 58. Ke3 {[%clk 0:00:02]}  Ne5 {[%clk 0:00:18]} 59. Nd4 {[%clk 0:00:02]}  Rg3+ {[%clk 0:00:18]} 60. Ke2 {[%clk 0:00:02]}  Ng4 {[%clk 0:00:17]} 61. Nf3 {[%clk 0:00:02]}  Rg2+ {[%clk 0:00:17]} 62. Kd3 {[%clk 0:00:02]}  Rf2 {[%clk 0:00:17]} 63. Nd4 {[%clk 0:00:03]}  Ne5+ {[%clk 0:00:16]} 64. Ke3 {[%clk 0:00:03]}  Ng4+ {[%clk 0:00:17]} 65. Kd3 {[%clk 0:00:03]}  Ke5 {[%clk 0:00:15]} 66. Nc6+ {[%clk 0:00:03]}  Kd6 {[%clk 0:00:15]} 67. Rg7 {[%clk 0:00:04]}  Rg2 {[%clk 0:00:13]} 68. Ne7 {[%clk 0:00:01]}  Ne5+ {[%clk 0:00:13]} 69. Kd4 {[%clk 0:00:02]}  Rxg7 {[%clk 0:00:12]} 70. Nc8+ {[%clk 0:00:02]}  Kc7 {[%clk 0:00:13]} 71. Na7 {[%clk 0:00:02]}  Nc6+ {[%clk 0:00:12]} 72. Nxc6 {[%clk 0:00:02]}  Kxc6 {[%clk 0:00:13]} 73. Ke5 {[%clk 0:00:03]}  Kd7 {[%clk 0:00:12]} 74. c4 {[%clk 0:00:04]}  Rg1 {[%clk 0:00:12]} 75. c5 {[%clk 0:00:02]}  Rc1 {[%clk 0:00:12]} 76. Kd4 {[%clk 0:00:02]}  Rc2 {[%clk 0:00:13]} 0-1


[Site "https://www.chess.com"]

[Event "Titled Tuesday Blitz May 4 2021"]
[White "The_filthy"]
[Black "Gedgafov, Chamal"]
[BlackFideId "34130621"]
[WhiteElo "2391"]
[BlackElo "2005"]
[Result "1-0"]
[Round "03"]
[TimeControl "180+1"]
[Date "2021.05.04"]
[WhiteClock "0:00:17"]
[BlackClock "0:00:01"]

1. e4 {[%clk 0:03:00]}  e6 {[%clk 0:02:32]} 2. d4 {[%clk 0:02:59]}  d5 {[%clk 0:02:26]} 3. Nc3 {[%clk 0:02:59]}  Bb4 {[%clk 0:02:25]} 4. e5 {[%clk 0:02:59]}  c5 {[%clk 0:02:23]} 5. Bd2 {[%clk 0:02:59]}  cxd4 {[%clk 0:02:22]} 6. Nb5 {[%clk 0:02:59]}  Bxd2+ {[%clk 0:02:20]} 7. Qxd2 {[%clk 0:02:59]}  Nc6 {[%clk 0:02:21]} 8. Nd6+ {[%clk 0:02:58]}  Kf8 {[%clk 0:02:20]} 9. Qf4 {[%clk 0:02:36]}  f6 {[%clk 0:02:06]} 10. Nf3 {[%clk 0:02:32]}  Nh6 {[%clk 0:01:48]} 11. O-O-O {[%clk 0:02:25]}  Nf7 {[%clk 0:01:44]} 12. Nxf7 {[%clk 0:02:24]}  Kxf7 {[%clk 0:01:45]} 13. Kb1 {[%clk 0:02:17]}  h6 {[%clk 0:01:38]} 14. h4 {[%clk 0:02:14]}  Rf8 {[%clk 0:01:34]} 15. Nxd4 {[%clk 0:02:01]}  Nxd4 {[%clk 0:01:27]} 16. Qxd4 {[%clk 0:01:58]}  fxe5 {[%clk 0:01:26]} 17. Qxe5 {[%clk 0:01:58]}  Qf6 {[%clk 0:01:25]} 18. Qc7+ {[%clk 0:01:57]}  Kg8 {[%clk 0:01:23]} 19. Rh3 {[%clk 0:01:44]}  Rf7 {[%clk 0:01:19]} 20. Qd6 {[%clk 0:01:36]}  Bd7 {[%clk 0:01:00]} 21. Bd3 {[%clk 0:01:28]}  Bc6 {[%clk 0:00:53]} 22. Rf3 {[%clk 0:01:16]}  Qe7 {[%clk 0:00:52]} 23. Qe5 {[%clk 0:01:14]}  Rxf3 {[%clk 0:00:48]} 24. gxf3 {[%clk 0:01:14]}  Rf8 {[%clk 0:00:48]} 25. f4 {[%clk 0:01:07]}  Rf6 {[%clk 0:00:46]} 26. h5 {[%clk 0:01:00]}  Qf7 {[%clk 0:00:44]} 27. Bg6 {[%clk 0:00:58]}  Qf8 {[%clk 0:00:42]} 28. Rd4 {[%clk 0:00:56]}  a6 {[%clk 0:00:35]} 29. a3 {[%clk 0:00:52]}  Bb5 {[%clk 0:00:19]} 30. a4 {[%clk 0:00:49]}  Bc6 {[%clk 0:00:19]} 31. b3 {[%clk 0:00:49]}  Qe7 {[%clk 0:00:15]} 32. Kb2 {[%clk 0:00:40]}  Qd7 {[%clk 0:00:15]} 33. Qb8+ {[%clk 0:00:31]}  Rf8 {[%clk 0:00:14]} 34. Bh7+ {[%clk 0:00:30]}  Kxh7 {[%clk 0:00:12]} 35. Qxf8 {[%clk 0:00:30]}  Qc7 {[%clk 0:00:09]} 36. Qc5 {[%clk 0:00:23]}  Qd7 {[%clk 0:00:08]} 37. Qc3 {[%clk 0:00:23]}  e5 {[%clk 0:00:07]} 38. fxe5 {[%clk 0:00:22]}  Qe6 {[%clk 0:00:07]} 39. f4 {[%clk 0:00:21]}  Qg4 {[%clk 0:00:06]} 40. Qd3+ {[%clk 0:00:21]}  Kg8 {[%clk 0:00:05]} 41. f5 {[%clk 0:00:17]}  Qxh5 {[%clk 0:00:04]} 42. f6 {[%clk 0:00:18]}  gxf6 {[%clk 0:00:03]} 43. exf6 {[%clk 0:00:19]}  Qf7 {[%clk 0:00:02]} 44. Rg4+ {[%clk 0:00:17]}  Kf8 {[%clk 0:00:01]} 45. Qf5 {[%clk 0:00:17]} 1-0


[Site "https://www.chess.com"]

[Event "Titled Tuesday Blitz May 4 2021"]
[White "Tisaj, Domen"]
[Black "Bluebaum, Matthias"]
[WhiteFideId "14628708"]
[BlackFideId "24651516"]
[WhiteElo "2243"]
[BlackElo "2685"]
[Result "1/2-1/2"]
[Round "03"]
[TimeControl "180+1"]
[Date "2021.05.04"]
[WhiteClock "0:00:04"]
[BlackClock "0:00:20"]

1. d4 {[%clk 0:03:00]}  Nf6 {[%clk 0:02:59]} 2. c4 {[%clk 0:03:01]}  e6 {[%clk 0:02:59]} 3. Nc3 {[%clk 0:03:01]}  d5 {[%clk 0:02:59]} 4. cxd5 {[%clk 0:03:01]}  exd5 {[%clk 0:03:00]} 5. Bg5 {[%clk 0:03:01]}  c6 {[%clk 0:03:01]} 6. e3 {[%clk 0:03:02]}  h6 {[%clk 0:03:01]} 7. Bh4 {[%clk 0:03:01]}  Be7 {[%clk 0:03:02]} 8. Bd3 {[%clk 0:03:01]}  O-O {[%clk 0:03:02]} 9. Qc2 {[%clk 0:02:59]}  Re8 {[%clk 0:03:03]} 10. Nf3 {[%clk 0:02:57]}  Ne4 {[%clk 0:03:03]} 11. Bxe7 {[%clk 0:02:55]}  Qxe7 {[%clk 0:03:04]} 12. O-O {[%clk 0:02:53]}  Bf5 {[%clk 0:02:58]} 13. Nd2 {[%clk 0:02:46]}  Nxd2 {[%clk 0:02:50]} 14. Qxd2 {[%clk 0:02:47]}  Bxd3 {[%clk 0:02:51]} 15. Qxd3 {[%clk 0:02:48]}  Nd7 {[%clk 0:02:52]} 16. Rab1 {[%clk 0:02:36]}  Nb6 {[%clk 0:02:14]} 17. Rfc1 {[%clk 0:02:28]}  a6 {[%clk 0:02:05]} 18. b4 {[%clk 0:02:13]}  Nc4 {[%clk 0:02:03]} 19. a4 {[%clk 0:02:03]}  b5 {[%clk 0:02:01]} 20. a5 {[%clk 0:02:03]}  g6 {[%clk 0:01:54]} 21. Ne2 {[%clk 0:01:59]}  Kg7 {[%clk 0:01:54]} 22. Nf4 {[%clk 0:01:54]}  Qd6 {[%clk 0:01:49]} 23. Qc3 {[%clk 0:01:44]}  h5 {[%clk 0:01:45]} 24. Nd3 {[%clk 0:01:40]}  h4 {[%clk 0:01:46]} 25. h3 {[%clk 0:01:37]}  Re7 {[%clk 0:01:42]} 26. Nc5 {[%clk 0:01:23]}  Qf6 {[%clk 0:01:41]} 27. Qd3 {[%clk 0:01:14]}  Qg5 {[%clk 0:01:36]} 28. Re1 {[%clk 0:01:08]}  Nd6 {[%clk 0:01:21]} 29. Rbc1 {[%clk 0:00:52]}  Qf6 {[%clk 0:01:17]} 30. Re2 {[%clk 0:00:46]}  Nc4 {[%clk 0:01:14]} 31. Rce1 {[%clk 0:00:45]}  Nd6 {[%clk 0:00:57]} 32. Qd1 {[%clk 0:00:17]}  Qf5 {[%clk 0:00:52]} 33. Qd3 {[%clk 0:00:16]}  Qg5 {[%clk 0:00:50]} 34. Qd1 {[%clk 0:00:14]}  Ne4 {[%clk 0:00:48]} 35. Nxe4 {[%clk 0:00:14]}  Rxe4 {[%clk 0:00:49]} 36. f3 {[%clk 0:00:12]}  Re6 {[%clk 0:00:49]} 37. e4 {[%clk 0:00:13]}  dxe4 {[%clk 0:00:47]} 38. fxe4 {[%clk 0:00:11]}  Rd8 {[%clk 0:00:46]} 39. Qa1 {[%clk 0:00:10]}  Kh7 {[%clk 0:00:45]} 40. e5 {[%clk 0:00:09]}  Qe7 {[%clk 0:00:41]} 41. Qc3 {[%clk 0:00:08]}  Kg8 {[%clk 0:00:34]} 42. Re4 {[%clk 0:00:08]}  Rd5 {[%clk 0:00:34]} 43. Rf1 {[%clk 0:00:06]}  Qd8 {[%clk 0:00:32]} 44. Ref4 {[%clk 0:00:06]}  Rd7 {[%clk 0:00:31]} 45. Qf3 {[%clk 0:00:06]}  Qe7 {[%clk 0:00:20]} 46. Qg4 {[%clk 0:00:06]}  Qxb4 {[%clk 0:00:18]} 47. Qxh4 {[%clk 0:00:05]}  Qe7 {[%clk 0:00:17]} 48. Qg4 {[%clk 0:00:05]}  Qe8 {[%clk 0:00:16]} 49. h4 {[%clk 0:00:05]}  b4 {[%clk 0:00:16]} 50. h5 {[%clk 0:00:05]}  b3 {[%clk 0:00:17]} 51. Rf6 {[%clk 0:00:06]}  Rxf6 {[%clk 0:00:17]} 52. Rxf6 {[%clk 0:00:04]}  b2 {[%clk 0:00:16]} 53. Rf1 {[%clk 0:00:05]}  Rb7 {[%clk 0:00:14]} 54. hxg6 {[%clk 0:00:03]}  fxg6 {[%clk 0:00:15]} 55. Qe4 {[%clk 0:00:01]}  Qe6 {[%clk 0:00:15]} 56. d5 {[%clk 0:00:02]}  Qxd5 {[%clk 0:00:16]} 57. Qxg6+ {[%clk 0:00:02]}  Rg7 {[%clk 0:00:16]} 58. Qe8+ {[%clk 0:00:01]}  Kh7 {[%clk 0:00:17]} 59. Qh5+ {[%clk 0:00:02]}  Kg8 {[%clk 0:00:18]} 60. Qe8+ {[%clk 0:00:02]}  Kh7 {[%clk 0:00:19]} 61. Qh5+ {[%clk 0:00:03]}  Kg8 {[%clk 0:00:20]} 62. Qe8+ {[%clk 0:00:04]} 1/2-1/2


[Site "https://www.chess.com"]

[Event "Titled Tuesday Blitz May 4 2021"]
[White "Triapishko, Alexandr"]
[Black "Kretov, Evgenij"]
[WhiteFideId "14122286"]
[BlackFideId "4167821"]
[WhiteElo "2490"]
[BlackElo "2381"]
[Result "1-0"]
[Round "03"]
[TimeControl "180+1"]
[Date "2021.05.04"]
[WhiteClock "0:00:06"]
[BlackClock "0:00:15"]

1. d4 {[%clk 0:03:00]}  Nf6 {[%clk 0:02:58]} 2. c4 {[%clk 0:03:00]}  c5 {[%clk 0:02:57]} 3. Nf3 {[%clk 0:02:55]}  cxd4 {[%clk 0:02:57]} 4. Nxd4 {[%clk 0:02:56]}  Nc6 {[%clk 0:02:57]} 5. Nc3 {[%clk 0:02:50]}  g6 {[%clk 0:02:58]} 6. e4 {[%clk 0:02:42]}  d6 {[%clk 0:02:58]} 7. Be2 {[%clk 0:02:40]}  Nxd4 {[%clk 0:02:58]} 8. Qxd4 {[%clk 0:02:41]}  Bg7 {[%clk 0:02:58]} 9. Be3 {[%clk 0:02:41]}  O-O {[%clk 0:02:58]} 10. Qd2 {[%clk 0:02:41]}  Be6 {[%clk 0:02:58]} 11. Rc1 {[%clk 0:02:29]}  Qa5 {[%clk 0:02:57]} 12. f3 {[%clk 0:02:07]}  Rfc8 {[%clk 0:02:56]} 13. b3 {[%clk 0:02:04]}  a6 {[%clk 0:02:56]} 14. Na4 {[%clk 0:02:04]}  Qxd2+ {[%clk 0:02:56]} 15. Kxd2 {[%clk 0:02:04]}  Nd7 {[%clk 0:02:56]} 16. g4 {[%clk 0:02:04]}  f5 {[%clk 0:02:56]} 17. exf5 {[%clk 0:02:04]}  gxf5 {[%clk 0:02:56]} 18. h3 {[%clk 0:02:05]}  Rf8 {[%clk 0:02:57]} 19. f4 {[%clk 0:02:02]}  Rad8 {[%clk 0:02:42]} 20. g5 {[%clk 0:01:55]}  Bf7 {[%clk 0:02:36]} 21. Bf3 {[%clk 0:01:41]}  b5 {[%clk 0:02:34]} 22. cxb5 {[%clk 0:01:42]}  axb5 {[%clk 0:02:34]} 23. Nc3 {[%clk 0:01:43]}  Bxc3+ {[%clk 0:02:13]} 24. Rxc3 {[%clk 0:01:44]}  e5 {[%clk 0:02:13]} 25. Rc7 {[%clk 0:01:30]}  exf4 {[%clk 0:02:07]} 26. Bxf4 {[%clk 0:01:25]}  Ne5 {[%clk 0:02:07]} 27. Be2 {[%clk 0:01:24]}  Ra8 {[%clk 0:02:02]} 28. Rc2 {[%clk 0:01:23]}  Bd5 {[%clk 0:01:53]} 29. Rhc1 {[%clk 0:01:12]}  Be4 {[%clk 0:01:53]} 30. Rb2 {[%clk 0:01:13]}  b4 {[%clk 0:01:50]} 31. Ke3 {[%clk 0:00:55]}  Rfc8 {[%clk 0:01:47]} 32. Rxc8+ {[%clk 0:00:50]}  Rxc8 {[%clk 0:01:47]} 33. Rd2 {[%clk 0:00:51]}  Rc3+ {[%clk 0:01:43]} 34. Kf2 {[%clk 0:00:51]}  Nd3+ {[%clk 0:01:18]} 35. Bxd3 {[%clk 0:00:43]}  Rxd3 {[%clk 0:01:18]} 36. Rxd3 {[%clk 0:00:36]}  Bxd3 {[%clk 0:01:18]} 37. Ke3 {[%clk 0:00:23]}  Bb1 {[%clk 0:01:16]} 38. Kd2 {[%clk 0:00:22]}  d5 {[%clk 0:01:14]} 39. Kc1 {[%clk 0:00:16]}  Bd3 {[%clk 0:01:04]} 40. Bd6 {[%clk 0:00:16]}  Kf7 {[%clk 0:01:01]} 41. Bxb4 {[%clk 0:00:16]}  Kg6 {[%clk 0:01:01]} 42. Bd2 {[%clk 0:00:10]}  Bf1 {[%clk 0:00:53]} 43. a4 {[%clk 0:00:08]}  Kf7 {[%clk 0:00:51]} 44. b4 {[%clk 0:00:07]}  Ke6 {[%clk 0:00:52]} 45. b5 {[%clk 0:00:07]}  Kd7 {[%clk 0:00:50]} 46. Be3 {[%clk 0:00:06]}  Bxh3 {[%clk 0:00:47]} 47. Kc2 {[%clk 0:00:04]}  Bf1 {[%clk 0:00:38]} 48. Kc3 {[%clk 0:00:04]}  Kc7 {[%clk 0:00:34]} 49. Kb4 {[%clk 0:00:04]}  Kd6 {[%clk 0:00:32]} 50. a5 {[%clk 0:00:03]}  Be2 {[%clk 0:00:27]} 51. a6 {[%clk 0:00:03]}  Kc7 {[%clk 0:00:27]} 52. Kc5 {[%clk 0:00:02]}  d4 {[%clk 0:00:24]} 53. Bf4+ {[%clk 0:00:02]}  Kc8 {[%clk 0:00:23]} 54. Kc6 {[%clk 0:00:02]}  d3 {[%clk 0:00:20]} 55. b6 {[%clk 0:00:02]}  Bf3+ {[%clk 0:00:19]} 56. Kc5 {[%clk 0:00:03]}  Be4 {[%clk 0:00:13]} 57. Kd4 {[%clk 0:00:03]}  Bc6 {[%clk 0:00:13]} 58. Kc3 {[%clk 0:00:02]}  Be4 {[%clk 0:00:11]} 59. b7+ {[%clk 0:00:02]}  Bxb7 {[%clk 0:00:12]} 60. axb7+ {[%clk 0:00:03]}  Kxb7 {[%clk 0:00:12]} 61. Kxd3 {[%clk 0:00:04]}  Kc6 {[%clk 0:00:13]} 62. Kd4 {[%clk 0:00:04]}  Kd7 {[%clk 0:00:13]} 63. Ke5 {[%clk 0:00:05]}  Ke7 {[%clk 0:00:14]} 64. Kxf5 {[%clk 0:00:05]}  Kf7 {[%clk 0:00:15]} 65. Be5 {[%clk 0:00:06]}  Kg8 {[%clk 0:00:15]} 66. Kf6 {[%clk 0:00:05]}  Kf8 {[%clk 0:00:15]} 67. Bd6+ {[%clk 0:00:05]}  Kg8 {[%clk 0:00:15]} 68. Bc5 {[%clk 0:00:05]}  Kh8 {[%clk 0:00:15]} 69. Kf7 {[%clk 0:00:05]}  h5 {[%clk 0:00:15]} 70. g6 {[%clk 0:00:06]} 1-0


[Site "https://www.chess.com"]

[Event "Titled Tuesday Blitz May 4 2021"]
[White "Tristan, Leonardo"]
[Black "Krasilnikov, Evgeni"]
[WhiteFideId "113816"]
[BlackFideId "4139739"]
[WhiteElo "2404"]
[BlackElo "2357"]
[Result "1-0"]
[Round "03"]
[TimeControl "180+1"]
[Date "2021.05.04"]
[WhiteClock "0:00:04"]
[BlackClock "0:00:04"]

1. d4 {[%clk 0:03:00]}  Nf6 {[%clk 0:02:59]} 2. Bf4 {[%clk 0:03:01]}  d6 {[%clk 0:02:56]} 3. e3 {[%clk 0:03:01]}  g6 {[%clk 0:02:56]} 4. Be2 {[%clk 0:03:01]}  Bg7 {[%clk 0:02:56]} 5. Nf3 {[%clk 0:03:01]}  O-O {[%clk 0:02:56]} 6. O-O {[%clk 0:03:02]}  c5 {[%clk 0:02:56]} 7. c3 {[%clk 0:03:02]}  b6 {[%clk 0:02:56]} 8. h3 {[%clk 0:03:02]}  Bb7 {[%clk 0:02:55]} 9. Bh2 {[%clk 0:03:02]}  a6 {[%clk 0:02:55]} 10. a4 {[%clk 0:03:02]}  Nbd7 {[%clk 0:02:54]} 11. Nbd2 {[%clk 0:03:02]}  Ne4 {[%clk 0:02:53]} 12. Nxe4 {[%clk 0:03:02]}  Bxe4 {[%clk 0:02:52]} 13. Qb3 {[%clk 0:03:00]}  Ra7 {[%clk 0:02:51]} 14. d5 {[%clk 0:02:56]}  Bxf3 {[%clk 0:02:33]} 15. Bxf3 {[%clk 0:02:56]}  Qa8 {[%clk 0:02:23]} 16. Be2 {[%clk 0:02:48]}  Rb8 {[%clk 0:02:22]} 17. Ra3 {[%clk 0:02:18]}  Nf6 {[%clk 0:02:10]} 18. c4 {[%clk 0:02:02]}  b5 {[%clk 0:02:01]} 19. axb5 {[%clk 0:01:58]}  axb5 {[%clk 0:02:00]} 20. Rxa7 {[%clk 0:01:59]}  Qxa7 {[%clk 0:02:00]} 21. cxb5 {[%clk 0:02:00]}  Qb7 {[%clk 0:01:55]} 22. Rd1 {[%clk 0:01:58]}  Ne8 {[%clk 0:01:52]} 23. Qa4 {[%clk 0:01:12]}  Nc7 {[%clk 0:01:49]} 24. b4 {[%clk 0:01:12]}  Nxd5 {[%clk 0:01:29]} 25. bxc5 {[%clk 0:00:27]}  Nc3 {[%clk 0:01:22]} 26. Qc2 {[%clk 0:00:27]}  Nxe2+ {[%clk 0:01:10]} 27. Qxe2 {[%clk 0:00:27]}  Qxb5 {[%clk 0:01:10]} 28. Qxb5 {[%clk 0:00:27]}  Rxb5 {[%clk 0:01:10]} 29. cxd6 {[%clk 0:00:27]}  exd6 {[%clk 0:01:09]} 30. Bxd6 {[%clk 0:00:27]}  Be5 {[%clk 0:01:07]} 31. Be7 {[%clk 0:00:25]}  Kg7 {[%clk 0:01:05]} 32. f4 {[%clk 0:00:23]}  Bf6 {[%clk 0:01:05]} 33. Bd6 {[%clk 0:00:18]}  Ra5 {[%clk 0:00:55]} 34. Kf2 {[%clk 0:00:18]}  Ra2+ {[%clk 0:00:54]} 35. Kf3 {[%clk 0:00:19]}  Ra1 {[%clk 0:00:53]} 36. Rd2 {[%clk 0:00:15]}  h5 {[%clk 0:00:49]} 37. g4 {[%clk 0:00:13]}  hxg4+ {[%clk 0:00:47]} 38. hxg4 {[%clk 0:00:14]}  Rb1 {[%clk 0:00:43]} 39. g5 {[%clk 0:00:13]}  Bc3 {[%clk 0:00:40]} 40. Rc2 {[%clk 0:00:13]}  Ba1 {[%clk 0:00:39]} 41. Ra2 {[%clk 0:00:13]}  Bc3 {[%clk 0:00:39]} 42. Ra3 {[%clk 0:00:10]}  Bb4 {[%clk 0:00:38]} 43. Be5+ {[%clk 0:00:09]}  Kf8 {[%clk 0:00:37]} 44. Ra8+ {[%clk 0:00:07]}  Ke7 {[%clk 0:00:36]} 45. Rb8 {[%clk 0:00:07]}  Rb3 {[%clk 0:00:34]} 46. Bf6+ {[%clk 0:00:06]}  Ke6 {[%clk 0:00:32]} 47. Bg7 {[%clk 0:00:06]}  Rb1 {[%clk 0:00:26]} 48. Bf8 {[%clk 0:00:06]}  Rf1+ {[%clk 0:00:24]} 49. Ke2 {[%clk 0:00:06]}  Re1+ {[%clk 0:00:24]} 50. Kf2 {[%clk 0:00:07]}  Bd2 {[%clk 0:00:23]} 51. Rb6+ {[%clk 0:00:05]}  Kf5 {[%clk 0:00:21]} 52. Rb5+ {[%clk 0:00:04]}  Kg4 {[%clk 0:00:20]} 53. Bc5 {[%clk 0:00:03]}  Rc1 {[%clk 0:00:19]} 54. Bd4 {[%clk 0:00:03]}  Rc2 {[%clk 0:00:18]} 55. Ke2 {[%clk 0:00:04]}  Bc1+ {[%clk 0:00:16]} 56. Kd3 {[%clk 0:00:04]}  Rc8 {[%clk 0:00:15]} 57. Rb7 {[%clk 0:00:04]}  Rf8 {[%clk 0:00:13]} 58. Ke4 {[%clk 0:00:03]}  Re8+ {[%clk 0:00:13]} 59. Be5 {[%clk 0:00:03]}  Rf8 {[%clk 0:00:11]} 60. Rb1 {[%clk 0:00:04]}  Bd2 {[%clk 0:00:10]} 61. Rg1+ {[%clk 0:00:04]}  Kh3 {[%clk 0:00:10]} 62. Kf3 {[%clk 0:00:05]}  Kh2 {[%clk 0:00:06]} 63. Rg2+ {[%clk 0:00:05]}  Kh3 {[%clk 0:00:06]} 64. Rxd2 {[%clk 0:00:06]}  f5 {[%clk 0:00:04]} 65. gxf6 {[%clk 0:00:06]}  g5 {[%clk 0:00:04]} 66. fxg5 {[%clk 0:00:04]}  Rg8 {[%clk 0:00:04]} 67. Rh2# {[%clk 0:00:04]} 1-0


[Site "https://www.chess.com"]